[Event "Titled Tuesday Blitz June 20 Late 2023"]
[White "Ismagilov, Damir"]
[Black "Maksimovic, Bojan"]
[WhiteFideId "34199982"]
[BlackFideId "14408120"]
[WhiteElo "2104"]
[BlackElo "2457"]
[Result "0-1"]
[Round "6"]
[TimeControl "180+2"]
[Date "2023.06.20"]
[WhiteClock "0:00:00"]
[BlackClock "0:00:05"]
[Board "26"]

1. d4 {[%clk 0:03:00]}  Nf6 {[%clk 0:02:59]} 2. Bf4 {[%clk 0:03:00]}  Nh5 {[%clk 0:02:58]} 3. Bd2 {[%clk 0:02:57]}  Nf6 {[%clk 0:02:55]} 4. Bf4 {[%clk 0:02:57]}  Nh5 {[%clk 0:02:55]} 5. Bd2 {[%clk 0:02:57]}  d6 {[%clk 0:02:51]} 6. e4 {[%clk 0:02:56]}  g6 {[%clk 0:02:51]} 7. Be2 {[%clk 0:02:50]}  Nf6 {[%clk 0:02:52]} 8. Nc3 {[%clk 0:02:49]}  Nc6 {[%clk 0:02:51]} 9. Nf3 {[%clk 0:02:44]}  Bg7 {[%clk 0:02:46]} 10. d5 {[%clk 0:02:42]}  Ne5 {[%clk 0:02:45]} 11. Nxe5 {[%clk 0:02:41]}  dxe5 {[%clk 0:02:46]} 12. O-O {[%clk 0:02:39]}  O-O {[%clk 0:02:46]} 13. Be3 {[%clk 0:02:33]}  Ne8 {[%clk 0:02:44]} 14. f3 {[%clk 0:02:18]}  Nd6 {[%clk 0:02:44]} 15. Nb5 {[%clk 0:02:17]}  a6 {[%clk 0:02:43]} 16. Nxd6 {[%clk 0:02:17]}  exd6 {[%clk 0:02:41]} 17. c4 {[%clk 0:02:18]}  f5 {[%clk 0:02:38]} 18. c5 {[%clk 0:02:17]}  fxe4 {[%clk 0:02:36]} 19. fxe4 {[%clk 0:02:16]}  Rxf1+ {[%clk 0:02:36]} 20. Bxf1 {[%clk 0:02:15]}  Qh4 {[%clk 0:02:32]} 21. Bd3 {[%clk 0:02:06]}  Bg4 {[%clk 0:02:27]} 22. Qb3 {[%clk 0:01:59]}  Bh6 {[%clk 0:02:23]} 23. Bf2 {[%clk 0:01:53]}  Qe7 {[%clk 0:02:20]} 24. Qxb7 {[%clk 0:01:50]}  Rf8 {[%clk 0:02:20]} 25. cxd6 {[%clk 0:01:45]}  Qxd6 {[%clk 0:01:58]} 26. Qxa6 {[%clk 0:01:41]}  Qb4 {[%clk 0:01:57]} 27. Qc4 {[%clk 0:01:24]}  Qxb2 {[%clk 0:01:49]} 28. Rf1 {[%clk 0:01:23]}  Rxf2 {[%clk 0:01:32]} 29. Rxf2 {[%clk 0:01:24]}  Be3 {[%clk 0:01:32]} 30. d6+ {[%clk 0:01:11]}  Kh8 {[%clk 0:01:23]} 31. Qf7 {[%clk 0:01:09]}  Qc1+ {[%clk 0:00:40]} 32. Bf1 {[%clk 0:01:07]}  Bxf2+ {[%clk 0:00:25]} 33. Qxf2 {[%clk 0:00:56]}  Kg8 {[%clk 0:00:26]} 34. Qh4 {[%clk 0:00:47]}  Qe3+ {[%clk 0:00:22]} 35. Qf2 {[%clk 0:00:46]}  Qxf2+ {[%clk 0:00:12]} 36. Kxf2 {[%clk 0:00:46]}  cxd6 {[%clk 0:00:12]} 37. a4 {[%clk 0:00:46]}  Kf8 {[%clk 0:00:11]} 38. a5 {[%clk 0:00:46]}  Ke7 {[%clk 0:00:09]} 39. a6 {[%clk 0:00:45]}  Bc8 {[%clk 0:00:10]} 40. a7 {[%clk 0:00:38]}  Bb7 {[%clk 0:00:09]} 41. Ke3 {[%clk 0:00:29]}  Kd7 {[%clk 0:00:10]} 42. Bc4 {[%clk 0:00:27]}  Kc7 {[%clk 0:00:10]} 43. h4 {[%clk 0:00:23]}  h6 {[%clk 0:00:10]} 44. g4 {[%clk 0:00:17]}  g5 {[%clk 0:00:10]} 45. hxg5 {[%clk 0:00:16]}  hxg5 {[%clk 0:00:11]} 46. Bd5 {[%clk 0:00:13]}  Bxd5 {[%clk 0:00:11]} 47. exd5 {[%clk 0:00:14]}  Kb7 {[%clk 0:00:12]} 48. Ke4 {[%clk 0:00:15]}  Kxa7 {[%clk 0:00:13]} 49. Kf5 {[%clk 0:00:15]}  Kb7 {[%clk 0:00:13]} 50. Kxg5 {[%clk 0:00:16]}  Kc7 {[%clk 0:00:13]} 51. Kf6 {[%clk 0:00:10]}  e4 {[%clk 0:00:13]} 52. g5 {[%clk 0:00:11]}  e3 {[%clk 0:00:14]} 53. g6 {[%clk 0:00:12]}  e2 {[%clk 0:00:14]} 54. g7 {[%clk 0:00:13]}  e1=Q {[%clk 0:00:15]} 55. g8=Q {[%clk 0:00:13]}  Qe5+ {[%clk 0:00:14]} 56. Kg6 {[%clk 0:00:09]}  Kb6 {[%clk 0:00:14]} 57. Qe6 {[%clk 0:00:04]}  Kc5 {[%clk 0:00:13]} 58. Qc8+ {[%clk 0:00:03]}  Kxd5 {[%clk 0:00:13]} 59. Qb7+ {[%clk 0:00:03]}  Kd4 {[%clk 0:00:14]} 60. Qb4+ {[%clk 0:00:03]}  Ke3 {[%clk 0:00:14]} 61. Qe1+ {[%clk 0:00:04]}  Kf4 {[%clk 0:00:14]} 62. Qf1+ {[%clk 0:00:03]}  Ke4 {[%clk 0:00:14]} 63. Qe2+ {[%clk 0:00:03]}  Kd5 {[%clk 0:00:14]} 64. Qb5+ {[%clk 0:00:03]}  Kd4 {[%clk 0:00:15]} 65. Qb2+ {[%clk 0:00:03]}  Kc5 {[%clk 0:00:15]} 66. Qc2+ {[%clk 0:00:02]}  Kb4 {[%clk 0:00:15]} 67. Qb1+ {[%clk 0:00:02]}  Kc4 {[%clk 0:00:15]} 68. Qf1+ {[%clk 0:00:01]}  Kc5 {[%clk 0:00:15]} 69. Qc1+ {[%clk 0:00:01]}  Kb6 {[%clk 0:00:15]} 70. Qb1+ {[%clk 0:00:01]}  Kc7 {[%clk 0:00:15]} 71. Qc1+ {[%clk 0:00:02]}  Kd7 {[%clk 0:00:15]} 72. Qa3 {[%clk 0:00:02]}  d5 {[%clk 0:00:14]} 73. Qa7+ {[%clk 0:00:02]}  Qc7 {[%clk 0:00:15]} 74. Qd4 {[%clk 0:00:02]}  Qc4 {[%clk 0:00:07]} 75. Qa7+ {[%clk 0:00:02]}  Ke6 {[%clk 0:00:07]} 76. Qb6+ {[%clk 0:00:02]}  Ke5 {[%clk 0:00:07]} 77. Qb8+ {[%clk 0:00:02]}  Kd4 {[%clk 0:00:07]} 78. Qb6+ {[%clk 0:00:02]}  Kc3 {[%clk 0:00:07]} 79. Qa5+ {[%clk 0:00:01]}  Kd3 {[%clk 0:00:07]} 80. Qa3+ {[%clk 0:00:01]}  Qc3 {[%clk 0:00:07]} 81. Qa6+ {[%clk 0:00:02]}  Ke3 {[%clk 0:00:07]} 82. Qe6+ {[%clk 0:00:02]}  Kd4 {[%clk 0:00:08]} 83. Qb6+ {[%clk 0:00:02]}  Qc5 {[%clk 0:00:08]} 84. Qb2+ {[%clk 0:00:03]}  Ke4 {[%clk 0:00:08]} 85. Qe2+ {[%clk 0:00:02]}  Qe3 {[%clk 0:00:08]} 86. Qg2+ {[%clk 0:00:02]}  Qf3 {[%clk 0:00:09]} 87. Qc2+ {[%clk 0:00:02]}  Qd3 {[%clk 0:00:10]} 88. Qc6 {[%clk 0:00:02]}  Ke3+ {[%clk 0:00:07]} 89. Kg5 {[%clk 0:00:02]}  d4 {[%clk 0:00:04]} 90. Qc5 {[%clk 0:00:02]}  Qe4 {[%clk 0:00:04]} 91. Qa3+ {[%clk 0:00:02]}  d3 {[%clk 0:00:05]} 92. Qa7+ {[%clk 0:00:02]}  Ke2 {[%clk 0:00:05]} 93. Qa6 {[%clk 0:00:02]}  Qe3+ {[%clk 0:00:05]} 94. Kg4 {[%clk 0:00:02]}  Kf2 {[%clk 0:00:05]} 95. Qa2+ {[%clk 0:00:01]}  d2 {[%clk 0:00:06]} 96. Kh4 {[%clk 0:00:01]}  Kg2 {[%clk 0:00:06]} 97. Qg8+ {[%clk 0:00:01]}  Kh2 {[%clk 0:00:05]} 98. Qb8+ {[%clk 0:00:01]}  Kg1 {[%clk 0:00:05]} 99. Qb1+ {[%clk 0:00:00]}  Kf2 {[%clk 0:00:05]} 0-1


[Site "https://www.chess.com"]

[Event "Titled Tuesday Blitz June 20 Late 2023"]
[White "Erdogmus, Yagiz Kaan"]
[Black "Koellner, Ruben Gideon"]
[WhiteFideId "44599790"]
[BlackFideId "12993093"]
[WhiteElo "2359"]
[BlackElo "2314"]
[Result "0-1"]
[Round "6"]
[TimeControl "180+2"]
[Date "2023.06.20"]
[WhiteClock "0:00:00"]
[BlackClock "0:00:06"]
[Board "34"]

1. e4 {[%clk 0:02:55]}  d6 {[%clk 0:03:00]} 2. d4 {[%clk 0:02:54]}  Nf6 {[%clk 0:03:00]} 3. Nc3 {[%clk 0:02:55]}  e5 {[%clk 0:03:00]} 4. Nf3 {[%clk 0:02:54]}  Nbd7 {[%clk 0:03:00]} 5. Bc4 {[%clk 0:02:54]}  Be7 {[%clk 0:03:00]} 6. dxe5 {[%clk 0:02:52]}  Nxe5 {[%clk 0:03:00]} 7. Nxe5 {[%clk 0:02:52]}  dxe5 {[%clk 0:03:01]} 8. Qxd8+ {[%clk 0:02:52]}  Bxd8 {[%clk 0:03:02]} 9. f3 {[%clk 0:02:50]}  c6 {[%clk 0:03:02]} 10. a4 {[%clk 0:02:51]}  a5 {[%clk 0:02:59]} 11. Be3 {[%clk 0:02:51]}  Nd7 {[%clk 0:02:56]} 12. O-O-O {[%clk 0:02:50]}  Bb6 {[%clk 0:02:57]} 13. Rhe1 {[%clk 0:02:46]}  Bxe3+ {[%clk 0:02:56]} 14. Rxe3 {[%clk 0:02:47]}  Nc5 {[%clk 0:02:47]} 15. b3 {[%clk 0:02:43]}  Ke7 {[%clk 0:02:46]} 16. Nb1 {[%clk 0:02:42]}  Bd7 {[%clk 0:02:42]} 17. Na3 {[%clk 0:02:22]}  Rad8 {[%clk 0:02:40]} 18. Rc3 {[%clk 0:02:20]}  b6 {[%clk 0:02:32]} 19. Bf1 {[%clk 0:02:16]}  Be6 {[%clk 0:02:32]} 20. Bc4 {[%clk 0:02:16]}  Rxd1+ {[%clk 0:02:31]} 21. Kxd1 {[%clk 0:02:16]}  Rd8+ {[%clk 0:02:31]} 22. Ke1 {[%clk 0:02:16]}  Bc8 {[%clk 0:02:31]} 23. Be2 {[%clk 0:02:13]}  Be6 {[%clk 0:02:31]} 24. Re3 {[%clk 0:01:49]}  g6 {[%clk 0:02:29]} 25. Bc4 {[%clk 0:01:44]}  Bc8 {[%clk 0:02:28]} 26. Re2 {[%clk 0:01:38]}  f6 {[%clk 0:02:19]} 27. Rd2 {[%clk 0:01:36]}  Rxd2 {[%clk 0:02:19]} 28. Kxd2 {[%clk 0:01:37]}  h6 {[%clk 0:02:15]} 29. Bg8 {[%clk 0:01:30]}  Kf8 {[%clk 0:02:15]} 30. Bc4 {[%clk 0:01:30]}  Ke7 {[%clk 0:02:15]} 31. Kc1 {[%clk 0:01:19]}  f5 {[%clk 0:02:15]} 32. exf5 {[%clk 0:01:18]}  gxf5 {[%clk 0:02:16]} 33. c3 {[%clk 0:01:18]}  Kf6 {[%clk 0:02:02]} 34. Kd2 {[%clk 0:00:58]}  Kg5 {[%clk 0:01:42]} 35. Bg8 {[%clk 0:00:51]}  Ba6 {[%clk 0:01:40]} 36. Ke3 {[%clk 0:00:47]}  f4+ {[%clk 0:01:26]} 37. Kf2 {[%clk 0:00:46]}  e4 {[%clk 0:01:24]} 38. Bc4 {[%clk 0:00:41]}  e3+ {[%clk 0:01:24]} 39. Ke2 {[%clk 0:00:40]}  Bc8 {[%clk 0:00:32]} 40. Nc2 {[%clk 0:00:16]}  b5 {[%clk 0:00:28]} 41. axb5 {[%clk 0:00:12]}  cxb5 {[%clk 0:00:29]} 42. Bxb5 {[%clk 0:00:12]}  Nxb3 {[%clk 0:00:29]} 43. g3 {[%clk 0:00:13]}  Bb7 {[%clk 0:00:14]} 44. Bd7 {[%clk 0:00:06]}  Nc1+ {[%clk 0:00:12]} 45. Kd1 {[%clk 0:00:06]}  Nd3 {[%clk 0:00:11]} 46. Ke2 {[%clk 0:00:05]}  Nc1+ {[%clk 0:00:09]} 47. Kd1 {[%clk 0:00:05]}  Na2 {[%clk 0:00:07]} 48. h4+ {[%clk 0:00:02]}  Kf6 {[%clk 0:00:07]} 49. gxf4 {[%clk 0:00:03]}  Nxc3+ {[%clk 0:00:05]} 50. Ke1 {[%clk 0:00:04]}  e2 {[%clk 0:00:04]} 51. Nd4 {[%clk 0:00:03]}  a4 {[%clk 0:00:03]} 52. Bb5 {[%clk 0:00:02]}  Nxb5 {[%clk 0:00:01]} 53. Nxb5 {[%clk 0:00:02]}  Bxf3 {[%clk 0:00:02]} 54. Nd4 {[%clk 0:00:03]}  a3 {[%clk 0:00:02]} 55. Nc2 {[%clk 0:00:01]}  a2 {[%clk 0:00:02]} 56. Kf2 {[%clk 0:00:02]}  Bg4 {[%clk 0:00:02]} 57. Ke1 {[%clk 0:00:02]}  Bf5 {[%clk 0:00:02]} 58. Na1 {[%clk 0:00:02]}  Bd3 {[%clk 0:00:02]} 59. Kd2 {[%clk 0:00:02]}  Bc4 {[%clk 0:00:03]} 60. Ke1 {[%clk 0:00:02]}  Kf5 {[%clk 0:00:03]} 61. Nc2 {[%clk 0:00:02]}  Kxf4 {[%clk 0:00:04]} 62. Kf2 {[%clk 0:00:03]}  Kg4 {[%clk 0:00:04]} 63. Ne3+ {[%clk 0:00:03]}  Kxh4 {[%clk 0:00:05]} 64. Nc2 {[%clk 0:00:03]}  Kg5 {[%clk 0:00:04]} 65. Ke1 {[%clk 0:00:03]}  h5 {[%clk 0:00:05]} 66. Kd2 {[%clk 0:00:03]}  h4 {[%clk 0:00:05]} 67. Kc3 {[%clk 0:00:04]}  a1=Q+ {[%clk 0:00:05]} 68. Nxa1 {[%clk 0:00:03]}  e1=Q+ {[%clk 0:00:06]} 69. Kxc4 {[%clk 0:00:00]}  Qxa1 {[%clk 0:00:06]} 0-1


[Site "https://www.chess.com"]

[Event "Titled Tuesday Blitz June 20 Late 2023"]
[White "Fishbein, Alexander"]
[Black "Elsa167"]
[WhiteFideId "2000377"]
[WhiteElo "2403"]
[BlackElo "2824"]
[Result "0-1"]
[Round "6"]
[TimeControl "180+2"]
[Date "2023.06.20"]
[WhiteClock "0:00:11"]
[BlackClock "0:00:22"]
[Board "35"]

1. e4 {[%clk 0:03:00]}  e6 {[%clk 0:02:59]} 2. d4 {[%clk 0:02:59]}  d5 {[%clk 0:03:00]} 3. exd5 {[%clk 0:02:59]}  exd5 {[%clk 0:03:01]} 4. Nf3 {[%clk 0:02:59]}  Nf6 {[%clk 0:03:01]} 5. Bd3 {[%clk 0:02:58]}  Bd6 {[%clk 0:03:02]} 6. Qe2+ {[%clk 0:02:58]}  Be6 {[%clk 0:03:02]} 7. Ng5 {[%clk 0:02:57]}  Qe7 {[%clk 0:03:03]} 8. Nxe6 {[%clk 0:02:57]}  Qxe6 {[%clk 0:03:04]} 9. O-O {[%clk 0:02:52]}  O-O {[%clk 0:03:03]} 10. c3 {[%clk 0:02:48]}  c5 {[%clk 0:03:01]} 11. Qxe6 {[%clk 0:02:43]}  fxe6 {[%clk 0:03:01]} 12. Nd2 {[%clk 0:02:36]}  Nc6 {[%clk 0:03:00]} 13. Nf3 {[%clk 0:02:35]}  cxd4 {[%clk 0:02:33]} 14. cxd4 {[%clk 0:02:31]}  Nb4 {[%clk 0:02:31]} 15. Bb1 {[%clk 0:02:28]}  Rac8 {[%clk 0:02:31]} 16. a3 {[%clk 0:02:13]}  Nc2 {[%clk 0:02:31]} 17. Ra2 {[%clk 0:02:10]}  Rc7 {[%clk 0:02:22]} 18. Bd2 {[%clk 0:02:00]}  Ne4 {[%clk 0:02:12]} 19. Bc3 {[%clk 0:01:36]}  Nxc3 {[%clk 0:01:51]} 20. bxc3 {[%clk 0:01:35]}  Nxa3 {[%clk 0:01:52]} 21. Ng5 {[%clk 0:01:24]}  Nxb1 {[%clk 0:01:43]} 22. Rxb1 {[%clk 0:01:14]}  Rxc3 {[%clk 0:01:33]} 23. Rxa7 {[%clk 0:01:07]}  Rfc8 {[%clk 0:01:25]} 24. g3 {[%clk 0:01:05]}  Rc1+ {[%clk 0:01:23]} 25. Rxc1 {[%clk 0:01:05]}  Rxc1+ {[%clk 0:01:24]} 26. Kg2 {[%clk 0:01:05]}  Re1 {[%clk 0:00:54]} 27. Rxb7 {[%clk 0:01:02]}  h6 {[%clk 0:00:52]} 28. Nf3 {[%clk 0:01:01]}  Re4 {[%clk 0:00:51]} 29. Rb6 {[%clk 0:00:54]}  Be7 {[%clk 0:00:48]} 30. Rb8+ {[%clk 0:00:54]}  Kh7 {[%clk 0:00:45]} 31. Re8 {[%clk 0:00:53]}  Bf6 {[%clk 0:00:45]} 32. h4 {[%clk 0:00:49]}  Kg6 {[%clk 0:00:45]} 33. Kf1 {[%clk 0:00:42]}  Kf5 {[%clk 0:00:38]} 34. Rf8 {[%clk 0:00:39]}  Kg6 {[%clk 0:00:29]} 35. Re8 {[%clk 0:00:36]}  Kf7 {[%clk 0:00:29]} 36. Ra8 {[%clk 0:00:33]}  g5 {[%clk 0:00:30]} 37. hxg5 {[%clk 0:00:31]}  hxg5 {[%clk 0:00:31]} 38. Ra4 {[%clk 0:00:24]}  g4 {[%clk 0:00:31]} 39. Nd2 {[%clk 0:00:24]}  Rxd4 {[%clk 0:00:28]} 40. Rxd4 {[%clk 0:00:24]}  Bxd4 {[%clk 0:00:29]} 41. f3 {[%clk 0:00:23]}  Be3 {[%clk 0:00:27]} 42. Nb1 {[%clk 0:00:16]}  gxf3 {[%clk 0:00:27]} 43. Nc3 {[%clk 0:00:15]}  Kf6 {[%clk 0:00:22]} 44. Nd1 {[%clk 0:00:11]}  Bd4 {[%clk 0:00:22]} 0-1


[Site "https://www.chess.com"]

[Event "Titled Tuesday Blitz June 20 Late 2023"]
[White "Piesik, Piotr"]
[Black "Harsh Suresh"]
[WhiteFideId "1136194"]
[BlackFideId "45018464"]
[WhiteElo "2303"]
[BlackElo "2209"]
[Result "0-1"]
[Round "6"]
[TimeControl "180+2"]
[Date "2023.06.20"]
[WhiteClock "0:00:15"]
[BlackClock "0:00:04"]
[Board "36"]

1. Nf3 {[%clk 0:02:53]}  Nf6 {[%clk 0:02:55]} 2. g3 {[%clk 0:02:53]}  g6 {[%clk 0:02:55]} 3. Bg2 {[%clk 0:02:54]}  Bg7 {[%clk 0:02:55]} 4. O-O {[%clk 0:02:54]}  O-O {[%clk 0:02:56]} 5. d4 {[%clk 0:02:55]}  d5 {[%clk 0:02:56]} 6. c4 {[%clk 0:02:55]}  c6 {[%clk 0:02:57]} 7. Nc3 {[%clk 0:02:53]}  Bg4 {[%clk 0:02:57]} 8. Ne5 {[%clk 0:02:52]}  Be6 {[%clk 0:02:56]} 9. cxd5 {[%clk 0:02:52]}  Nxd5 {[%clk 0:02:56]} 10. Nxd5 {[%clk 0:02:45]}  Bxd5 {[%clk 0:02:57]} 11. e4 {[%clk 0:02:41]}  Bxe5 {[%clk 0:02:41]} 12. dxe5 {[%clk 0:02:41]}  Bc4 {[%clk 0:02:41]} 13. Bh6 {[%clk 0:02:25]}  Bxf1 {[%clk 0:02:28]} 14. Bxf8 {[%clk 0:02:24]}  Nd7 {[%clk 0:02:10]} 15. Bxf1 {[%clk 0:02:10]}  Nxf8 {[%clk 0:02:07]} 16. Qb3 {[%clk 0:02:07]}  Qb6 {[%clk 0:02:06]} 17. Rd1 {[%clk 0:02:02]}  Qxb3 {[%clk 0:01:57]} 18. axb3 {[%clk 0:02:03]}  Rb8 {[%clk 0:01:28]} 19. f4 {[%clk 0:02:00]}  Ne6 {[%clk 0:01:26]} 20. b4 {[%clk 0:01:59]}  Rd8 {[%clk 0:01:25]} 21. Rxd8+ {[%clk 0:01:57]}  Nxd8 {[%clk 0:01:25]} 22. Kf2 {[%clk 0:01:54]}  Kf8 {[%clk 0:01:25]} 23. Ke3 {[%clk 0:01:54]}  Ke8 {[%clk 0:01:25]} 24. Bh3 {[%clk 0:01:53]}  e6 {[%clk 0:01:25]} 25. Kd4 {[%clk 0:01:47]}  Kd7 {[%clk 0:01:25]} 26. Bf1 {[%clk 0:01:46]}  Kc7 {[%clk 0:01:24]} 27. b5 {[%clk 0:01:45]}  Kb6 {[%clk 0:01:23]} 28. bxc6 {[%clk 0:01:45]}  Nxc6+ {[%clk 0:01:23]} 29. Kc4 {[%clk 0:01:43]}  a6 {[%clk 0:01:07]} 30. h4 {[%clk 0:01:42]}  Kc7 {[%clk 0:00:57]} 31. Be2 {[%clk 0:01:41]}  b5+ {[%clk 0:00:57]} 32. Kc5 {[%clk 0:01:41]}  Nb8 {[%clk 0:00:56]} 33. b4 {[%clk 0:01:34]}  Nd7+ {[%clk 0:00:44]} 34. Kd4 {[%clk 0:01:33]}  Kb6 {[%clk 0:00:45]} 35. h5 {[%clk 0:01:30]}  Nb8 {[%clk 0:00:45]} 36. Kc3 {[%clk 0:01:25]}  Nc6 {[%clk 0:00:44]} 37. h6 {[%clk 0:01:18]}  a5 {[%clk 0:00:43]} 38. bxa5+ {[%clk 0:01:18]}  Nxa5 {[%clk 0:00:43]} 39. Bd1 {[%clk 0:01:13]}  Kc5 {[%clk 0:00:43]} 40. g4 {[%clk 0:01:13]}  Nc6 {[%clk 0:00:36]} 41. g5 {[%clk 0:01:08]}  Na5 {[%clk 0:00:24]} 42. Bg4 {[%clk 0:00:59]}  Nc4 {[%clk 0:00:21]} 43. Kd3 {[%clk 0:00:52]}  b4 {[%clk 0:00:21]} 44. Be2 {[%clk 0:00:50]}  b3 {[%clk 0:00:20]} 45. Kc3 {[%clk 0:00:49]}  b2 {[%clk 0:00:20]} 46. Bd3 {[%clk 0:00:49]}  Ne3 {[%clk 0:00:12]} 47. f5 {[%clk 0:00:37]}  exf5 {[%clk 0:00:09]} 48. exf5 {[%clk 0:00:37]}  Nxf5 {[%clk 0:00:09]} 49. Kxb2 {[%clk 0:00:27]}  Kd5 {[%clk 0:00:09]} 50. Kc3 {[%clk 0:00:20]}  Kxe5 {[%clk 0:00:09]} 51. Bc4 {[%clk 0:00:20]}  Nd6 {[%clk 0:00:09]} 52. Bb3 {[%clk 0:00:19]}  Ne4+ {[%clk 0:00:02]} 53. Kd3 {[%clk 0:00:18]}  Nxg5 {[%clk 0:00:03]} 54. Ke3 {[%clk 0:00:19]}  Ne6 {[%clk 0:00:03]} 55. Kf3 {[%clk 0:00:19]}  f5 {[%clk 0:00:04]} 56. Kg3 {[%clk 0:00:19]}  Kf6 {[%clk 0:00:03]} 57. Bc4 {[%clk 0:00:19]}  Ng5 {[%clk 0:00:03]} 58. Kf4 {[%clk 0:00:19]}  Nf7 {[%clk 0:00:04]} 59. Ke3 {[%clk 0:00:15]}  Nxh6 {[%clk 0:00:04]} 0-1


[Site "https://www.chess.com"]

[Event "Titled Tuesday Blitz June 20 Late 2023"]
[White "Ortega Amarelle, Mariano"]
[Black "Sattarov, Bobir"]
[WhiteFideId "3504301"]
[BlackFideId "14203081"]
[WhiteElo "2392"]
[BlackElo "2351"]
[Result "0-1"]
[Round "6"]
[TimeControl "180+2"]
[Date "2023.06.20"]
[WhiteClock "0:00:09"]
[BlackClock "0:00:09"]
[Board "37"]

1. b3 {[%clk 0:03:00]}  e5 {[%clk 0:02:58]} 2. Bb2 {[%clk 0:03:01]}  Nc6 {[%clk 0:02:59]} 3. e3 {[%clk 0:03:00]}  g6 {[%clk 0:02:59]} 4. Nf3 {[%clk 0:02:57]}  Bg7 {[%clk 0:03:00]} 5. d4 {[%clk 0:02:57]}  d6 {[%clk 0:02:58]} 6. dxe5 {[%clk 0:02:55]}  Nxe5 {[%clk 0:02:49]} 7. Nxe5 {[%clk 0:02:55]}  Bxe5 {[%clk 0:02:49]} 8. Bxe5 {[%clk 0:02:54]}  dxe5 {[%clk 0:02:50]} 9. Qxd8+ {[%clk 0:02:54]}  Kxd8 {[%clk 0:02:51]} 10. Nc3 {[%clk 0:02:54]}  c6 {[%clk 0:02:46]} 11. O-O-O+ {[%clk 0:02:54]}  Kc7 {[%clk 0:02:46]} 12. Ne4 {[%clk 0:02:54]}  f5 {[%clk 0:02:42]} 13. Nd6 {[%clk 0:02:31]}  Nf6 {[%clk 0:02:40]} 14. a4 {[%clk 0:02:22]}  Be6 {[%clk 0:02:38]} 15. Bc4 {[%clk 0:02:21]}  Bd5 {[%clk 0:02:27]} 16. Bxd5 {[%clk 0:01:58]}  cxd5 {[%clk 0:02:24]} 17. Nf7 {[%clk 0:01:50]}  Rhe8 {[%clk 0:02:21]} 18. f4 {[%clk 0:01:50]}  exf4 {[%clk 0:02:01]} 19. exf4 {[%clk 0:01:50]}  Re2 {[%clk 0:01:54]} 20. Rhe1 {[%clk 0:01:34]}  Rae8 {[%clk 0:01:49]} 21. Rxe2 {[%clk 0:01:32]}  Rxe2 {[%clk 0:01:48]} 22. Rd2 {[%clk 0:01:33]}  Re1+ {[%clk 0:01:48]} 23. Kb2 {[%clk 0:01:32]}  Rh1 {[%clk 0:01:41]} 24. h3 {[%clk 0:00:56]}  Nh5 {[%clk 0:01:28]} 25. Rxd5 {[%clk 0:00:41]}  Nxf4 {[%clk 0:01:21]} 26. Rc5+ {[%clk 0:00:42]}  Kd7 {[%clk 0:01:20]} 27. g4 {[%clk 0:00:33]}  b6 {[%clk 0:01:02]} 28. Rb5 {[%clk 0:00:25]}  Ke7 {[%clk 0:00:33]} 29. Ne5 {[%clk 0:00:21]}  Kf6 {[%clk 0:00:29]} 30. Nc6 {[%clk 0:00:21]}  Nxh3 {[%clk 0:00:26]} 31. gxf5 {[%clk 0:00:21]}  g5 {[%clk 0:00:23]} 32. Nxa7 {[%clk 0:00:21]}  g4 {[%clk 0:00:23]} 33. Rxb6+ {[%clk 0:00:21]}  Kxf5 {[%clk 0:00:22]} 34. Rb5+ {[%clk 0:00:20]}  Kf4 {[%clk 0:00:21]} 35. Nc6 {[%clk 0:00:18]}  g3 {[%clk 0:00:20]} 36. Nd4 {[%clk 0:00:17]}  Re1 {[%clk 0:00:20]} 37. Rb7 {[%clk 0:00:15]}  g2 {[%clk 0:00:18]} 38. Rf7+ {[%clk 0:00:15]}  Kg4 {[%clk 0:00:17]} 39. Rg7+ {[%clk 0:00:14]}  Ng5 {[%clk 0:00:17]} 40. Nf3 {[%clk 0:00:11]}  Kxf3 {[%clk 0:00:15]} 41. Rxg5 {[%clk 0:00:12]}  g1=Q {[%clk 0:00:16]} 42. Rxg1 {[%clk 0:00:12]}  Rxg1 {[%clk 0:00:16]} 43. a5 {[%clk 0:00:13]}  h5 {[%clk 0:00:16]} 44. b4 {[%clk 0:00:13]}  h4 {[%clk 0:00:17]} 45. a6 {[%clk 0:00:13]}  h3 {[%clk 0:00:17]} 46. a7 {[%clk 0:00:12]}  Rg8 {[%clk 0:00:16]} 47. b5 {[%clk 0:00:13]}  h2 {[%clk 0:00:15]} 48. b6 {[%clk 0:00:13]}  h1=Q {[%clk 0:00:10]} 49. b7 {[%clk 0:00:14]}  Qh8+ {[%clk 0:00:10]} 50. Kb1 {[%clk 0:00:09]}  Rb8 {[%clk 0:00:09]} 0-1


[Site "https://www.chess.com"]

[Event "Titled Tuesday Blitz June 20 Late 2023"]
[White "Fodor, Tamas Jr."]
[Black "Suarez Uriel, Adrian"]
[WhiteFideId "723762"]
[BlackFideId "22230874"]
[WhiteElo "2504"]
[BlackElo "2331"]
[Result "1-0"]
[Round "6"]
[TimeControl "180+2"]
[Date "2023.06.20"]
[WhiteClock "0:01:38"]
[BlackClock "0:01:47"]
[Board "39"]

1. d4 {[%clk 0:03:00]}  Nf6 {[%clk 0:02:59]} 2. c4 {[%clk 0:02:57]}  g6 {[%clk 0:03:00]} 3. Nc3 {[%clk 0:02:56]}  d5 {[%clk 0:03:00]} 4. Nf3 {[%clk 0:02:54]}  Bg7 {[%clk 0:03:00]} 5. Qb3 {[%clk 0:02:55]}  dxc4 {[%clk 0:02:59]} 6. Qxc4 {[%clk 0:02:56]}  O-O {[%clk 0:02:59]} 7. e4 {[%clk 0:02:56]}  a6 {[%clk 0:02:59]} 8. Be2 {[%clk 0:02:51]}  b5 {[%clk 0:02:59]} 9. Qb3 {[%clk 0:02:51]}  c5 {[%clk 0:03:00]} 10. dxc5 {[%clk 0:02:51]}  Bb7 {[%clk 0:03:00]} 11. a4 {[%clk 0:02:43]}  Nxe4 {[%clk 0:02:57]} 12. Nxe4 {[%clk 0:02:42]}  Bxe4 {[%clk 0:02:57]} 13. axb5 {[%clk 0:02:43]}  axb5 {[%clk 0:02:57]} 14. Rxa8 {[%clk 0:02:43]}  Bxa8 {[%clk 0:02:58]} 15. Qxb5 {[%clk 0:02:40]}  Nc6 {[%clk 0:02:53]} 16. O-O {[%clk 0:02:39]}  Nd4 {[%clk 0:02:51]} 17. Nxd4 {[%clk 0:02:36]}  Qxd4 {[%clk 0:02:52]} 18. Qc4 {[%clk 0:02:32]}  Rc8 {[%clk 0:02:49]} 19. Qxd4 {[%clk 0:02:28]}  Bxd4 {[%clk 0:02:48]} 20. b4 {[%clk 0:02:29]}  Bc3 {[%clk 0:02:45]} 21. Ba3 {[%clk 0:02:28]}  Bd5 {[%clk 0:02:44]} 22. h3 {[%clk 0:02:23]}  Ra8 {[%clk 0:02:44]} 23. Rd1 {[%clk 0:02:14]}  Rxa3 {[%clk 0:02:21]} 24. Rxd5 {[%clk 0:02:13]}  Bxb4 {[%clk 0:02:21]} 25. c6 {[%clk 0:02:13]}  Rc3 {[%clk 0:02:21]} 26. Rd8+ {[%clk 0:02:11]}  Kg7 {[%clk 0:02:21]} 27. Bf3 {[%clk 0:02:11]}  Bd6 {[%clk 0:02:21]} 28. Kf1 {[%clk 0:02:06]}  h5 {[%clk 0:02:21]} 29. Ke2 {[%clk 0:02:05]}  g5 {[%clk 0:02:11]} 30. Kd2 {[%clk 0:02:04]}  Rc5 {[%clk 0:02:10]} 31. Rc8 {[%clk 0:01:58]}  h4 {[%clk 0:02:06]} 32. Kd3 {[%clk 0:01:57]}  f5 {[%clk 0:02:04]} 33. Bh5 {[%clk 0:01:48]}  Kf6 {[%clk 0:02:04]} 34. Be8 {[%clk 0:01:46]}  Ke5 {[%clk 0:02:04]} 35. Bd7 {[%clk 0:01:46]}  Rd5+ {[%clk 0:02:04]} 36. Ke2 {[%clk 0:01:45]}  Rc5 {[%clk 0:02:05]} 37. Rf8 {[%clk 0:01:45]}  Kf4 {[%clk 0:02:02]} 38. Kd3 {[%clk 0:01:39]}  Rc1 {[%clk 0:01:47]} 39. Rxf5# {[%clk 0:01:38]} 1-0


[Site "https://www.chess.com"]